{"text_format":"1","workbook":"xlsx","n_sheets":2,"sheets":["FormularLohnforderung","Speicherliste"],"not_rendered":{"charts":0,"images":0,"macros":1,"external_links":0,"defined_names":2,"comments":1,"pivot_tables":0},"unopened":[],"bounds":{"document_bytes":16777216,"sheet_cells":100000,"rows_first":2000,"rows_last":500,"rows_between":2000,"halvings":0,"cell_chars":16384,"cell_head_chars":4096},"cells_cut":0,"cells_raw":0,"read":"whole","date_system":"1900"}

{"sheet":"FormularLohnforderung","index":0,"n_rows":245,"n_cols":11,"rows_kept":245,"cut":false,"hidden":false,"merged":[[93,9,93,11],[87,9,87,11],[61,2,61,7],[30,4,30,5],[74,9,74,11],[83,9,83,11],[85,9,85,11],[75,9,75,11],[76,9,76,11],[77,9,77,11],[78,9,78,11],[79,9,79,11],[81,9,81,11],[62,2,62,4],[91,9,91,11],[2,10,2,12],[54,3,54,4],[27,8,34,12],[6,7,6,12],[7,7,7,12],[8,7,8,12],[9,7,9,12],[170,7,170,10],[162,7,162,10],[163,7,163,10],[167,7,167,10],[165,7,165,10],[166,7,166,10],[94,9,94,11],[95,9,95,11],[106,9,106,11],[108,9,108,11],[168,7,168,10],[96,9,96,11],[104,9,104,11],[111,9,111,11],[101,3,101,6],[102,3,102,6],[97,9,97,11],[98,9,98,11],[99,9,99,11],[100,9,100,11],[101,9,101,11],[102,9,102,11],[100,3,100,6],[95,3,95,6],[96,3,96,6],[97,3,97,6],[98,3,98,6],[99,3,99,6]]}
[""]
[]
[null,null,{"$f":"CONCATENATE(\"Lohnforderungseingabe von: \", Speicherliste!B7, \" \", Speicherliste!B8)","v":"Lohnforderungseingabe von:  "},null,null,null,null,null,null,"Druckdatum:",{"$f":"TODAY()","v":"2025-10-24"}]
[null,null,{"$f":"CONCATENATE(\"Im Konkurs: \", Speicherliste!B1)","v":"Im Konkurs: "},null,null,null,null,null,null,"ELFE Version:","4.2 © 2025"]
[]
[]
[]
[]
[]
[]
[]
[]
[]
[]
[null,null,"Konkursit:",null,{"$f":"IF(Speicherliste!B1 <> \"\", Speicherliste!B1,\"\")","v":""},null,null,null,"Datum der Konkurseröffnung:"]
[]
[null,false,"Strasse:",null,{"$f":"CONCATENATE(Speicherliste!B2,\" \",Speicherliste!B3)","v":" "},null,null,null,null,{"$f":"IF(Speicherliste!B6 <> \"\", Speicherliste!B6,\"\")","v":""}]
[null,false]
[null,null,"PLZ/Ort:",null,{"$f":"CONCATENATE(Speicherliste!B4, \"  \", Speicherliste!B5)","v":"  "}]
[null,false]
[null,false]
[]
[null,null,"Gläubiger:",null,{"$f":"IF(Speicherliste!B66 <> \"\", CONCATENATE(Speicherliste!B8,\" \",Speicherliste!B7,\" c/o \",Speicherliste!B66),CONCATENATE(Speicherliste!B8,\" \",Speicherliste!B7))","v":" "},null,null,null,{"$f":"IF(AND(Speicherliste!B15<>\"\",Speicherliste!D15=\"\"),(CONCATENATE(\"AHV-Nr.: \",Speicherliste!B15)),CONCATENATE(\"AHV-Nr.: \",Speicherliste!D15))","v":"AHV-Nr.: "}]
[]
[null,null,"Adresse:",null,{"$f":"IF(Speicherliste!B77 = TRUE, CONCATENATE(Speicherliste!B9,\" \",Speicherliste!B10,\", Postfach \",Speicherliste!B78), CONCATENATE(Speicherliste!B9,\" \",Speicherliste!B10))","v":" "},null,null,null,{"$f":"CONCATENATE(\"Nationalität: \",Speicherliste!B16)","v":"Nationalität: "}]
[]
[null,null,"PLZ/Ort:",null,{"$f":"CONCATENATE(Speicherliste!B11,\" \",Speicherliste!B12)","v":" "}]
[null,null,null,null,null,null,null,null,{"$f":"IF(Speicherliste!B19 <> \"\", Speicherliste!B19,\"\")","v":""}]
[null,null,"Land:",null,{"$f":"IF(Speicherliste!B13 <> \"\", Speicherliste!B13,\"\")","v":""}]
[]
[null,false,"TelefonNr.:",null,{"$f":"IF(Speicherliste!B14 <> \"\", Speicherliste!B14,\"\")","v":""}]
[null,false]
[]
[null,null,"Q'Steuer:",null,{"$f":"IF(Speicherliste!B17 = TRUE,\"Ich bin quellensteuerpflichtig.\",IF(Speicherliste!B18 = TRUE, \"Ich bin nicht quellensteuerpflichtig.\",\"\"))","v":""}]
[null,false]
[]
[null,null,"Vertretung:",null,{"$f":"IF(Speicherliste!B20 = TRUE, \"keine\", IF(Speicherliste!B22 <> \"\", Speicherliste!B22, \"\"))","v":""},null,null,null,{"$f":"IF(Speicherliste!B21 = TRUE, CONCATENATE(\"Land: \",Speicherliste!B27), \"\")","v":""}]
[]
[null,null,null,null,{"$f":"IF(AND(Speicherliste!B21 = TRUE,Speicherliste!B80 = TRUE), CONCATENATE(Speicherliste!B23,\" \",Speicherliste!B24, \", Postfach \",Speicherliste!B81), IF(Speicherliste!B21 = TRUE, CONCATENATE(Speicherliste!B23,\" \",Speicherliste!B24), \"\"))","v":""},null,null,null,{"$f":"IF(Speicherliste!B21 = TRUE, CONCATENATE(\"Telefon: \",Speicherliste!B28), \"\")","v":""}]
[null,false]
[null,false,null,null,{"$f":"IF(Speicherliste!B21 = TRUE,CONCATENATE(Speicherliste!B25, \" \", Speicherliste!B26),\"\")","v":""}]
[]
[null,false]
[null,null,"Arbeitsbeginn:",null,{"$f":"IF(Speicherliste!B29 <> \"\", Speicherliste!B29,\"\")","v":""},null,"Stellenbezeichnung:",{"$f":"IF(Speicherliste!B30 <> \"\", Speicherliste!B30,\"\")","v":""}]
[null,false,"Letzter Arbeitstag:",null,{"$f":"IF(Speicherliste!B34 <> \"\", Speicherliste!B34,\"\")","v":""},null,"Organstellung:",{"$f":" IF(Speicherliste!B32 = TRUE, Speicherliste!B33, IF(Speicherliste!B31 = TRUE,\"keine\",\"\"))","v":""}]
[]
[null,null,{"$f":"CONCATENATE(\"Vertraglicher Bruttomonatslohn:  CHF \",Speicherliste!B46,\".\")","v":"Vertraglicher Bruttomonatslohn:  CHF ."},null,null,null,null,{"$f":"CONCATENATE(\"Vertraglicher Ferienanspruch: \",Speicherliste!B47,\" \",Speicherliste!B48,\".\")","v":"Vertraglicher Ferienanspruch:  ."}]
[null,null,{"$f":"IF(OR(Speicherliste!B75<>\"\",Speicherliste!B75<>0),\"           und bis zum \",\"\")","v":""},null,{"$f":"IF(OR(Speicherliste!B75<>\"\",Speicherliste!B75<>0),Speicherliste!B74,\"\")","v":""},{"$f":"IF(OR(Speicherliste!B75<>\"\",Speicherliste!B75<>0),\"CHF\",\"\")","v":""},{"$f":"IF(OR(Speicherliste!B75<>\"\",Speicherliste!B75<>0),CONCATENATE(\" \",Speicherliste!B75,\".\"),\"\")","v":""}]
[null,false]
[null,false,{"$f":"IF(Speicherliste!B110 = TRUE, \"Letzter ausbezahlter Lohn: Es wurde nie ein ganzer Lohnausbezahlt\", IF(Speicherliste!B156 <> \"\", CONCATENATE(\"Letzter ausbezahlter Lohn: Für den \",Speicherliste!B58,\" \",Speicherliste!B59,\".\"), \"\"))","v":""}]
[]
[null,false,{"$f":"CONCATENATE(\"Vorgegebene wöchentliche Arbeitszeit: \",Speicherliste!B51,\" Stunden.\")","v":"Vorgegebene wöchentliche Arbeitszeit:  Stunden."},null,null,null,null,{"$f":"IF(Speicherliste!B49 = TRUE, \"Anspruch auf einen 13. Monatslohn: NEIN\", IF(Speicherliste!B50 = TRUE, \"Anspruch auf einen 13. Monatslohn: JA\",\"\"))","v":""}]
[null,false]
[null,null,{"$f":"IF(Speicherliste!B52=TRUE,\"Anspruch auf eine Sondervergütung: NEIN\",IF(Speicherliste!B53=TRUE,CONCATENATE(\"Es besteht ein Anspruch auf eine Sondervergütung im Betrag von CHF: \",Speicherliste!B57,\".\"),\"\"))","v":""}]
[null,null,{"$f":"IF(Speicherliste!B52=TRUE,\"\",IF(Speicherliste!B53=TRUE,\"Zeitraum:\",\"\"))","v":""},{"$f":"IF(Speicherliste!B54 <> \"\", Speicherliste!B54,\"\")","v":""},null,{"$f":"IF(Speicherliste!B53=TRUE,\" bis\",\"\")","v":""},{"$f":"IF(Speicherliste!B55 <> \"\", Speicherliste!B55,\"\")","v":""}]
[]
[null,null,{"$f":"IF(Speicherliste!B35=TRUE,CONCATENATE(\"Das Arbeitsverhältnis wurde \",Speicherliste!B38,\" gekündigt. Und zwar am: \"),IF(AND(Speicherliste!B40=TRUE,Speicherliste!B41 = FALSE, Speicherliste!B43 = FALSE),\"Das Arbeitsverhältnis wurde nicht gekündigt.\",IF(AND(Speicherliste!B40=TRUE,Speicherliste!B43 = TRUE),CONCATENATE(\"Das A'verhältn. wurde nicht gekündigt und war befristet. Ende V'Dauer: \"),IF(AND(Speicherliste!B40=TRUE,Speicherliste!B41= TRUE),CONCATENATE(\"Es erfolgte keine Kündigung. Kündigungstermin wäre gewesen: \"),IF(Speicherliste!B45= TRUE,\"Das A'Verhältnis wurde in gegenseitigem Einverständnis aufgelöst am: \",\"\")))))","v":""},null,null,null,null,{"$f":"IF(AND(Speicherliste!B35=TRUE,Speicherliste!B36 <> \"\"), Speicherliste!B36,IF(AND(Speicherliste!B40=TRUE,Speicherliste!B41 = FALSE, Speicherliste!B43 = FALSE),\"\",IF(AND(Speicherliste!B40=TRUE,Speicherliste!B43 = TRUE),Speicherliste!B44,IF(AND(Speicherliste!B40=TRUE,Speicherliste!B41= TRUE),Speicherliste!B42,IF(Speicherliste!B45 = TRUE,Speicherliste!B56,\"\")))))","v":""},{"$f":"IF(Speicherliste!B37<> \"\",\"auf den\",\"\")","v":""},{"$f":"IF(Speicherliste!B37<> \"\",Speicherliste!B37,\"\")","v":""}]
[]
[null,null,{"$f":"IF(AND(Speicherliste!B35 = TRUE,Speicherliste!B106 = TRUE),\"Es werden keine Lohnansprüche für einen längeren Zeitraum geltend gemacht.\",IF(AND(Speicherliste!B35 = TRUE,Speicherliste!B107 = TRUE), \"Infolge fehlerhafter Kündigung werden Lohnsprüche geltend gemacht bis zum: \",\"\"))","v":""},null,null,null,null,null,null,{"$f":"IF(Speicherliste!B107=TRUE,Speicherliste!B39,\"\")","v":""}]
[null,false]
[null,false,"Momentane Arbeitssituation:"]
[null,null,{"$f":"IF(Speicherliste!B95=TRUE,\"Bis heute keine neue Stelle.\",IF(Speicherliste!B96=TRUE,CONCATENATE(\"Angestellt bei: \",Speicherliste!B98),\"\"))","v":""},null,null,null,null,null,{"$f":"IF(Speicherliste!B95=TRUE, \"\", \"seit: \")","v":"seit: "},{"$f":" IF(Speicherliste!B97 <> \"\",Speicherliste!B97,\"\")","v":""}]
[null,null,{"$f":"IF(Speicherliste!B95=TRUE, \"\",\"Bruttolohn :\")","v":"Bruttolohn :"},null,null,{"$f":"IF(Speicherliste!B95=TRUE,\"\",\"CHF\")","v":"CHF"},{"$f":"IF(Speicherliste!B95=TRUE,\"\",IF(Speicherliste!B100 = \"\", \"\", Speicherliste!B100))","v":""},{"$f":"IF(Speicherliste!B95=TRUE, \"\",\".\")","v":"."},{"$f":"IF(Speicherliste!B99<> \"\", \"bis:\", \"\")","v":""},{"$f":"IF(Speicherliste!B99<> \"\", Speicherliste!B99, \"\")","v":""}]
[]
[null,null,"Es sind Ferienguthaben offen:",null,null,{"$f":"IF(OR(Speicherliste!B117 = 0, Speicherliste!B117 = \"\"), \"keine.\", \"bis\")","v":"keine."},{"$f":"IF(OR(Speicherliste!B117=0,Speicherliste!B117=\"\"),\"keine\",(IF(Speicherliste!B114<>\"\",Speicherliste!B114,Speicherliste!B111)))","v":"keine"},{"$f":"IF(OR(Speicherliste!B117 = 0, Speicherliste!B117 = \"\"), \"\", Speicherliste!B117)","v":""},{"$f":"IF(OR(Speicherliste!B117 = 0, Speicherliste!B117 = \"\"), \"\", \"Tag(e)\")","v":""},{"$f":"IF(OR(Speicherliste!B117 = 0, Speicherliste!B117 = \"\"), \"\", \"insgesamt.\")","v":""}]
[null,null,{"$f":"IF(Speicherliste!D117<> \"\", \"In Schweizerfranken umgerechnet betragen die Ferienansprüche insgesamt   CHF\", \"----\")","v":"----"},null,null,null,null,null,{"$f":"IF(Speicherliste!D117<> \"\", CONCATENATE(Speicherliste!D117, \".\"), \"\")","v":""}]
[null,null,"Bemerkung zu den Ferienguthaben:",null,null,null,{"$f":"IF(Speicherliste!B116 <> \"\", Speicherliste!B116, \"Keine\")","v":"Keine"}]
[]
[]
[]
[null,null,"Die geltend gemachte Forderung beträgt:"]
[]
[null,null,"Forderung für Löhne und Lohnbestandteile:"]
[]
[null,null,"1. Ausstehendes Grundgehalt bis zum Ablauf der Kündigungsfrist"]
[null,null,"    (ohne Familien- und Kinderzulagen):",null,null,null,null,null,"CHF",{"$f":"Speicherliste!K159","v":0}]
[null,false]
[null,null,"1.1 Abzüglich erhaltene Teillöhne:",null,null,null,{"$f":"IF(Speicherliste!B62 <> \"\",Speicherliste!B62,\"\")","v":""},{"$f":"IF(Speicherliste!B62<>\"\",\"-\",\"keine         \")","v":"keine         "},{"$f":"IF(Speicherliste!B62 <> \"\",\"CHF\",\"\")","v":""},{"$f":"IF(Speicherliste!B64 > 0.01, Speicherliste!B64, \"\")","v":""}]
[null,null,null,null,null,null,{"$f":"IF(Speicherliste!B65 <> \"\",Speicherliste!B65,\"\")","v":""},{"$f":"IF(Speicherliste!B65<>\"\",\"-\",\"\")","v":""},{"$f":"IF(Speicherliste!B65 <> \"\",\"CHF\",\"\")","v":""},{"$f":"IF(Speicherliste!B67 > 0.01, Speicherliste!B67, \"\")","v":""}]
[null,false,null,null,null,null,{"$f":"IF(Speicherliste!B68 <> \"\",Speicherliste!B68,\"\")","v":""},{"$f":"IF(Speicherliste!B68<>\"\",\"-\",\"\")","v":""},{"$f":"IF(Speicherliste!B68 <> \"\",\"CHF\",\"\")","v":""},{"$f":"IF(Speicherliste!B70 > 0.01, Speicherliste!B70, \"\")","v":""}]
[]
[null,null,{"$f":"IF(OR(Speicherliste!B164=\"\",ISERROR(Speicherliste!E158)=TRUE),\"1.2 Total ausstehendes Grundgehalt:\",CONCATENATE(\"1.2 Total ausstehendes Grundgehalt für den Zeitraum \",TEXT(Speicherliste!B164, \"TT.MM.JJJJ\"),\" bis \",TEXT(Speicherliste!E158, \"TT.MM.JJJJ\"),\":\"))","v":"1.2 Total ausstehendes Grundgehalt:"},null,null,null,null,null,"CHF",{"$f":"J76-SUM(J78:J80)","v":0}]
[]
[null,null,{"$f":"IF(OR(Speicherliste!D160=\"\",ISERROR(Speicherliste!E158)=TRUE, Speicherliste!B50=FALSE),\"2. Anteil des 13. Monatslohnes:\",CONCATENATE(\"2. Anteil des 13. Monatslohnes für den Zeitraum \",TEXT(Speicherliste!D160, \"TT.MM.JJJJ\"),\" bis \",TEXT(Speicherliste!E158, \"TT.MM.JJJJ\"),\":\"))","v":"2. Anteil des 13. Monatslohnes:"},null,null,null,null,null,"CHF",{"$f":"Speicherliste!K163","v":0}]
[]
[null,null,"3. Sondervergütung, auf die ein Rechtsanspruch besteht:",null,null,null,null,null,"CHF",{"$f":"Speicherliste!B57","v":0}]
[]
[null,null,"4. Kinder- und Familienzulagen:",null,null,null,"Diese stellen einen Direktanspruch gegenüber",null,null,"------"]
[null,null,null,null,null,null,"der Familienausgleichskasse dar und sind dort"]
[null,null,null,null,null,null,"direkt anzumelden. Siehe www.svazuerich.ch"]
[null,false]
[null,false,"5. Ferienguthaben (Anspruch pro rata):",null,null,null,null,{"$f":"IF(Speicherliste!B117>0,CONCATENATE(Speicherliste!B117,\" Tag(e)\"),\"\")","v":""},"CHF",{"$f":"Speicherliste!D117","v":0}]
[]
[null,null,"6. Sonstige Forderungen Total:",null,null,null,null,null,"CHF",{"$f":"SUM(J96:L103)","v":0}]
[null,false]
[null,false,{"$f":"IF(J96 <> \"\", \"6.1\", \"\")","v":""},{"$f":"IF(Speicherliste!B118 <> \"\",Speicherliste!B118,\"\")","v":""},null,null,null,null,{"$f":"IF(J96 <> \"\", \"CHF\", \"\")","v":""},{"$f":"IF(Speicherliste!B121 <> \"\",Speicherliste!B121,\"\")","v":""}]
[null,null,{"$f":"IF(J97 <> \"\", \"6.2\", \"\")","v":""},{"$f":"IF(Speicherliste!B122 <> \"\",Speicherliste!B122,\"\")","v":""},null,null,null,null,"",{"$f":"IF(Speicherliste!B125 <> \"\",Speicherliste!B125,\"\")","v":""}]
[null,null,{"$f":"IF(J98 <> \"\", \"6.3\", \"\")","v":""},{"$f":"IF(Speicherliste!B126 <> \"\",Speicherliste!B126,\"\")","v":""},null,null,null,null,"",{"$f":"IF(Speicherliste!B129 <> \"\",Speicherliste!B129,\"\")","v":""}]
[null,null,{"$f":"IF(J99 <> \"\", \"6.4\", \"\")","v":""},{"$f":"IF(Speicherliste!B130 <> \"\",Speicherliste!B130,\"\")","v":""},null,null,null,null,"",{"$f":"IF(Speicherliste!B133 <> \"\",Speicherliste!B133,\"\")","v":""}]
[null,null,{"$f":"IF(J100 <> \"\", \"6.5\", \"\")","v":""},{"$f":"IF(Speicherliste!B135 <> \"\",Speicherliste!B135,\"\")","v":""},null,null,null,null,"",{"$f":"IF(Speicherliste!B138 <> \"\",Speicherliste!B138,\"\")","v":""}]
[null,false,{"$f":"IF(J101 <> \"\", \"6.6\", \"\")","v":""},{"$f":"IF(Speicherliste!B139 <> \"\",Speicherliste!B139,\"\")","v":""},null,null,null,null,"",{"$f":"IF(Speicherliste!B142 <> \"\",Speicherliste!B142,\"\")","v":""}]
[null,false,{"$f":"IF(J102 <> \"\", \"6.7\", \"\")","v":""},{"$f":"IF(Speicherliste!B143 <> \"\",Speicherliste!B143,\"\")","v":""},null,null,null,null,"",{"$f":"IF(Speicherliste!B146 <> \"\",Speicherliste!B146,\"\")","v":""}]
[null,null,{"$f":"IF(J103 <> \"\", \"6.8\", \"\")","v":""},{"$f":"IF(Speicherliste!B147 <> \"\",Speicherliste!B147,\"\")","v":""},null,null,null,null,"",{"$f":"IF(Speicherliste!B150 <> \"\",Speicherliste!B150,\"\")","v":""}]
[]
[null,null,{"$f":"IF(OR(Speicherliste!B153<>\"\",Speicherliste!B154<>\"\"),CONCATENATE(\"7. Abzüglich Vorauszahlungen/Vorbezüge für \", TEXT(Speicherliste!B153,\"TT.MM.JJJJ\"),\" - \",TEXT(Speicherliste!B154,\"TT.MM.JJJJ\"),\" :\"),\"7. Abzüglich Vorauszahlungen/Vorbezüge:\")","v":"7. Abzüglich Vorauszahlungen/Vorbezüge:"},null,null,null,null,"-","CHF",{"$f":"Speicherliste!B94","v":0}]
[null,false]
[null,false,"8. Abzüglich Verdienst infolge neuen Stellenantritts:",null,null,null,null,"-","CHF",{"$f":"Speicherliste!B170","v":0}]
[]
[null,null,"9. Abzüglich sonstiger Einnahmen während Kündigungsfrist:",null,null,null,null,"-","CHF",{"$f":"Speicherliste!B104","v":0}]
[null,false]
[]
[null,null,"T O T A L :",null,null,null,null,null,"CHF",{"$f":"J82+J84+J86++J92+J94-J105-J107-J109","v":0}]
[]
[]
[null,null,"Ich beanspruche für meine Forderung die Kollokation in der 1. Klasse gemäss Art. 219 Abs. 4 Erste Klasse lit. a von"]
[null,null,"Bundesgesetzes über Schuldbetreibung und Konkurs (SchKG). Soweit meine Forderung die Voraussetzungen von Art."]
[null,null,"219 Abs. 4 Erste Klasse lit. a SchKG nicht erfüllt, anerkenne ich hierfür die Zuordnung in der 3. Klasse."]
[]
[null,null,"Ich habe vom Merkblatt für Arbeitnehmer der Arbeitslosenkasse (www.awa.zh.ch) Kenntnis erhalten."]
[]
[null,null,"Im Weiteren habe ich zustimmend zur Kenntnis genommen, dass meine geltend gemachte Forderung automatisch"]
[null,null,"im Umfang des Betrags, den ich von der Arbeitslosenkasse des Kantons Zürich, der Insolvenzentschädigung oder der"]
[null,null,"Taggeldkasse erhalte, auf die Kasse übergeht. Es ist mir bekannt, dass die Konkursverwaltung von den zur Auszah-"]
[null,null,"lung gelangenden Lohntreffnissen Arbeitnehmerbeiträge an die Sozialversicherungskassen (AHV etc.) abziehen wird."]
[]
[null,null,"Die Forderungen für den Zeitraum nach Konkurseröffnung sind bedingt, indem sich der Gläubiger auf diese Forderun-"]
[null,null,"gen anrechnen zu lassen hat, was er infolge der Beendigung des Arbeitsverhältnisses erspart hat und was er in"]
[null,null,"dieser Zeit durch anderweitige Arbeit verdient oder zu verdienen absichtlich unterlassen hat (Art. 324 Abs. 2 OR)."]
[null,null,"Soweit solche Forderungsreduktionen nicht bereits bei der Aufstellung der vorliegenden Eingabe erfasst wurden,"]
[null,null,"sind sie dem Konkursamt vor Ausrichtung einer allfälligen Konkursdividende mitzuteilen und bei Bedarf nachzuweisen."]
[]
[]
[null,null,"Ort und Datum:………………………………………………..",null,null,null,null,"Unterschrift:………………...……………….."]
[null,null,null,null,null,null,null,null,{"$f":"IF(Speicherliste!$B$22 <> \"\", \"Name / Stempel:\", CONCATENATE(Speicherliste!$B$8,\" \",Speicherliste!$B$7))","v":" "}]
[]
[null,null,"Hinweise für den/die Lohngläubiger/in:"]
[]
[null,null,"Sollte der Arbeitgeber nicht alle Sozialversicherungsbeiträge einbezahlt haben, so sind diese als eigenständige"]
[null,null,"Forderung durch die entsprechenden Sozialversicherungsanstalten geltend zu machen."]
[]
[null,null,"Wir bitten Sie, alle vorhandenen Beweismittel (Arbeitsvertrag, Lohnabrechnungen etc. in Kopie) der For-"]
[null,null,"derungseingabe beizulegen (vgl. hierzu Art. 59 KOV)."]
[]
[null,null,"Die nachfolgende Datenliste ist zusammen mit der eigentlichen Lohnforderungseingabe der Konkursverwaltung"]
[null,null,"einzusenden. Besten Dank!"]
[]
[null,null,"---------------------------------------------------------------------------------------------------------------------------------------------------------------------------"]
[null,null,"Durch das Konkursamt auszufüllen:"]
[]
[null,null,"Forderunsgeingabe erhalten, wobei die Überprüfung derselben im Sinne von Art. 244 f. SchKG später, "]
[null,null,"im Kollokationsverfahren erfolgt:"]
[]
[]
[null,null,"Ort und Datum:",null,null,null,"Unterschrift:"]
[]
[]
[]
[]
[]
[null,null,"Anhang:"]
[null,null,"Datenliste (zwingend zusammen mit der Forderungseingabe einzureichen!)"]
[null,null,"-----------------------------------------------------------------------------------------------------",null,null,null,null,"---------------------------------------------------------------------"]
[null,null,"Name des Konkursiten",null,null,null,null,{"$f":"Speicherliste!$B$1","v":0}]
[null,null,"Datum Konkurseröffnung",null,null,null,null,{"$f":"IF(Speicherliste!B$6 = \"\", \"\",Speicherliste!B$6)","v":""}]
[null,null,"-----------------------------------------------------------------------------------------------------",null,null,null,null,"---------------------------------------------------------------------"]
[null,null,"Name AN",null,null,null,null,{"$f":"Speicherliste!B$7","v":0}]
[null,null,"Vorname AN",null,null,null,null,{"$f":"Speicherliste!B$8","v":0}]
[null,null,{"$f":"IF(Speicherliste!B$17 = FALSE, \"\", \"OB Quellensteuerpflichtigkeit AN ja\")","v":""},null,null,null,null,{"$f":"IF(Speicherliste!B$17 = FALSE, \"\", Speicherliste!B$17)","v":""}]
[null,null,{"$f":"IF(Speicherliste!B$18 = FALSE, \"\", \"OB Quellensteuerpflichtigkeit AN nein\")","v":""},null,null,null,null,{"$f":"IF(Speicherliste!B$18 = FALSE, \"\", Speicherliste!B$18)","v":""}]
[null,null,"-----------------------------------------------------------------------------------------------------",null,null,null,null,"---------------------------------------------------------------------"]
[null,null,"Datum Arbeitsbeginn/erster Arbeitstag:",null,null,null,null,{"$f":"IF(Speicherliste!B$29 = \"\", \"\",Speicherliste!B$29)","v":""}]
[null,null,"Stellenbezeichnung",null,null,null,null,{"$f":"Speicherliste!B$30","v":0}]
[null,null,{"$f":"IF(Speicherliste!B$31 = FALSE, \"\", \"OB Organstellung nein\")","v":""},null,null,null,null,{"$f":"IF(Speicherliste!B$31 = FALSE, \"\", Speicherliste!B$31)","v":""}]
[null,null,{"$f":"IF(Speicherliste!B$32 = FALSE, \"\", \"OB Organstellung ja\")","v":""},null,null,null,null,{"$f":"IF(Speicherliste!B$32 = FALSE, \"\", Speicherliste!B$32)","v":""}]
[null,null,"Organbezeichnung",null,null,null,null,{"$f":"Speicherliste!B$33","v":0}]
[null,null,"Letzter Arbeitstag",null,null,null,null,{"$f":"IF(Speicherliste!B$34 = \"\", \"\",Speicherliste!B$34)","v":""}]
[null,null,"-----------------------------------------------------------------------------------------------------",null,null,null,null,"---------------------------------------------------------------------"]
[null,null,{"$f":"IF(Speicherliste!B$35 = FALSE, \"\", \"CB Kündigung ja\")","v":""},null,null,null,null,{"$f":"IF(Speicherliste!B$35 = FALSE, \"\", Speicherliste!B$35)","v":""}]
[null,null,"Künd datum",null,null,null,null,{"$f":"IF(Speicherliste!B$36 = \"\", \"\",Speicherliste!B$36)","v":""}]
[null,null,"Künd termin",null,null,null,null,{"$f":"IF(Speicherliste!B$37 = \"\", \"\",Speicherliste!B$37)","v":""}]
[null,null,"Art Künd",null,null,null,null,{"$f":"Speicherliste!B$38","v":0}]
[null,null,{"$f":"IF(Speicherliste!B$106 = FALSE, \"\", \"OB Lohnansprüche länger geltend gemacht ja\")","v":""},null,null,null,null,{"$f":"IF(Speicherliste!B$106 = FALSE, \"\", Speicherliste!B$106)","v":""}]
[null,null,{"$f":"IF(Speicherliste!B$107 = FALSE, \"\", \"OB Lohnansprüche länger geltend gemacht nein\")","v":""},null,null,null,null,{"$f":"IF(Speicherliste!B$107 = FALSE, \"\", Speicherliste!B$107)","v":""}]
[null,null,"Lohnanspruch geltend gemacht länger bis zum",null,null,null,null,{"$f":"IF(Speicherliste!B$39 = \"\", \"\",Speicherliste!B$39)","v":""}]
[null,null,{"$f":"IF(Speicherliste!B$45 = FALSE, \"\", \"CB Beendigung in gegenseitigem Einverständnis\")","v":""},null,null,null,null,{"$f":"IF(Speicherliste!B$45 = FALSE, \"\", Speicherliste!B$45)","v":""}]
[null,null,"Datum Beendigung in gegenseitigem Einverständnis",null,null,null,null,{"$f":"IF(Speicherliste!B$56 = \"\", \"\",Speicherliste!B$56)","v":""}]
[null,null,{"$f":"IF(Speicherliste!B$40 = FALSE, \"\", \"CB Kündigung nein\")","v":""},null,null,null,null,{"$f":"IF(Speicherliste!B$40 = FALSE, \"\", Speicherliste!B$40)","v":""}]
[null,null,{"$f":"IF(Speicherliste!B$41 = FALSE, \"\", \"OB Bei Konkeröffnung wäre nächster Künd termin\")","v":""},null,null,null,null,{"$f":"IF(Speicherliste!B$41 = FALSE, \"\", Speicherliste!B$41)","v":""}]
[null,null,"Datum nächstmögl. Termin",null,null,null,null,{"$f":"IF(Speicherliste!B$42 = \"\", \"\",Speicherliste!B$42)","v":""}]
[null,null,{"$f":"IF(Speicherliste!B$43 = FALSE, \"\", \"OB Das Arbeitsverhältn. war befristet. Ende der Vertragsdauer\")","v":""},null,null,null,null,{"$f":"IF(Speicherliste!B$43 = FALSE, \"\", Speicherliste!B$43)","v":""}]
[null,null,"Datum Ende Vertragsdauer",null,null,null,null,{"$f":"IF(Speicherliste!B$44 = \"\", \"\",Speicherliste!B$44)","v":""}]
[null,null,"-----------------------------------------------------------------------------------------------------",null,null,null,null,"---------------------------------------------------------------------"]
[null,null,"Vertragl. Lohn Betrag",null,null,null,null,{"$f":"Speicherliste!B$46","v":0}]
[null,null,"monatl. Grundgehalt nach altem Lohn bis und mit:",null,null,null,null,{"$f":"IF(Speicherliste!B$74 = \"\", \"\",Speicherliste!B$74)","v":""}]
[null,null,"monatl. Grundgehalt nach altem Lohn (Höhe):",null,null,null,null,{"$f":"Speicherliste!B$75","v":0}]
[null,null,"Ferienaspruch vertragl  anzahl",null,null,null,null,{"$f":"Speicherliste!B$47","v":0}]
[null,null,"Ferienanspruch vertragl. Einheit",null,null,null,null,{"$f":"Speicherliste!B$48","v":0}]
[null,null,{"$f":"IF(Speicherliste!B$49 = FALSE, \"\", \"OB Anspruch auf 13. nein\")","v":""},null,null,null,null,{"$f":"IF(Speicherliste!B$49 = FALSE, \"\", Speicherliste!B$49)","v":""}]
[null,null,{"$f":"IF(Speicherliste!B$50 = FALSE, \"\", \"OB Anspruch auf 13. ja\")","v":""},null,null,null,null,{"$f":"IF(Speicherliste!B$50 = FALSE, \"\", Speicherliste!B$50)","v":""}]
[null,null,{"$f":"IF(Speicherliste!B$52 = FALSE, \"\", \"OB Anspruch auf Grati nein\")","v":""},null,null,null,null,{"$f":"IF(Speicherliste!B$52 = FALSE, \"\", Speicherliste!B$52)","v":""}]
[null,null,{"$f":"IF(Speicherliste!B$52 = FALSE, \"\", \"OB Anspruch auf Grati ja\")","v":""},null,null,null,null,{"$f":"IF(Speicherliste!B$53 = FALSE, \"\", Speicherliste!B$53)","v":""}]
[null,null,"Datum ab wann Grati",null,null,null,null,{"$f":"IF(Speicherliste!B$54 = \"\", \"\",Speicherliste!B$54)","v":""}]
[null,null,"Datum bis wann Grati",null,null,null,null,{"$f":"IF(Speicherliste!B$55 = \"\", \"\",Speicherliste!B$55)","v":""}]
[null,null,"Betrag Gratifikation",null,null,null,null,{"$f":"Speicherliste!B$57","v":0}]
[null,null,"-----------------------------------------------------------------------------------------------------",null,null,null,null,"---------------------------------------------------------------------"]
[null,null,"Lohn vollständig bis Monatname",null,null,null,null,{"$f":"Speicherliste!B$58","v":0}]
[null,null,"Lohn vollständig bis Jahr",null,null,null,null,{"$f":"Speicherliste!B$59","v":0}]
[null,null,{"$f":"IF(Speicherliste!B$110 = FALSE, \"\", \"CB Ich habe nie eine Lohnzahlung erhalten\")","v":""},null,null,null,null,{"$f":"IF(Speicherliste!B$110 = FALSE, \"\", Speicherliste!B$110)","v":""}]
[null,null,{"$f":"IF(Speicherliste!B$60 = FALSE, \"\", \"OB Teillöhne erhalten nein\")","v":""},null,null,null,null,{"$f":"IF(Speicherliste!B$60 = FALSE, \"\", Speicherliste!B$60)","v":""}]
[null,null,{"$f":"IF(Speicherliste!B$61 = FALSE, \"\", \"OB Teillöhne erhalten ja\")","v":""},null,null,null,null,{"$f":"IF(Speicherliste!B$61 = FALSE, \"\", Speicherliste!B$61)","v":""}]
[null,null,"Teillohn 1 Monatname",null,null,null,null,{"$f":"Speicherliste!B$62","v":0}]
[null,null,"Teillohn 1 Betrag",null,null,null,null,{"$f":"Speicherliste!B$63","v":0}]
[null,null,"Teillohn 2 Monatname",null,null,null,null,{"$f":"Speicherliste!B$65","v":0}]
[null,null,"Teillohn 2 Betrag",null,null,null,null,{"$f":"Speicherliste!B$67","v":0}]
[null,null,"Teillohn 3 Monatname",null,null,null,null,{"$f":"Speicherliste!B$68","v":0}]
[null,null,"Teillohn 3 Betrag",null,null,null,null,{"$f":"Speicherliste!B$70","v":0}]
[null,null,"-----------------------------------------------------------------------------------------------------",null,null,null,null,"---------------------------------------------------------------------"]
[null,null,"Ferienguthaben per Datum",null,null,null,null,{"$f":"IF(Speicherliste!B$111 = \"\", \"\",Speicherliste!B$111)","v":""}]
[null,null,"Ferienguthaben per Anzahl Tage",null,null,null,null,{"$f":"Speicherliste!B$112","v":0}]
[null,null,"Ferienguthaben ab Datum",null,null,null,null,{"$f":"IF(Speicherliste!B$113 = \"\", \"\",Speicherliste!B$113)","v":""}]
[null,null,"Ferienguthaben bis Datum",null,null,null,null,{"$f":"IF(Speicherliste!B$114 = \"\", \"\",Speicherliste!B$114)","v":""}]
[null,null,"Ferienguthaben ab bis Anzahl Tage",null,null,null,null,{"$f":"Speicherliste!B$115","v":0}]
[null,null,"Bemerkungen zu Ferienguthaben",null,null,null,null,{"$f":"Speicherliste!B$116","v":0}]
[null,null,"Anzahl Tage Ferienguthaben insgesamt",null,null,null,null,{"$f":"Speicherliste!B$117","v":0}]
[null,null,"Ferienguthaben umgerechnet in Franken",null,null,null,null,{"$f":"Speicherliste!D$117","v":0}]
[null,null,"-----------------------------------------------------------------------------------------------------",null,null,null,null,"---------------------------------------------------------------------"]
[null,null,"Sonstige Forderungen vor KE 1 Betrag",null,null,null,null,{"$f":"Speicherliste!B$121","v":0}]
[null,null,"Sonstige Forderungen vor KE 2 Betrag",null,null,null,null,{"$f":"Speicherliste!B$125","v":0}]
[null,null,"Sonstige Forderungen vor KE 3 Betrag",null,null,null,null,{"$f":"Speicherliste!B$129","v":0}]
[null,null,"Sonstige Forderungen vor KE 4 Betrag",null,null,null,null,{"$f":"Speicherliste!B$133","v":0}]
[null,null,"Sonstige Forderungen vor KE TOTAL",null,null,null,null,{"$f":"Speicherliste!B$134","v":0}]
[null,null,"Sonstige Forderungen nach KE 1 Betrag",null,null,null,null,{"$f":"Speicherliste!B$138","v":0}]
[null,null,"Sonstige Forderungen nach KE 2 Betrag",null,null,null,null,{"$f":"Speicherliste!B$142","v":0}]
[null,null,"Sonstige Forderungen nach KE 3 Betrag",null,null,null,null,{"$f":"Speicherliste!B$146","v":0}]
[null,null,"Sonstige Forderungen nach KE 4 Betrag",null,null,null,null,{"$f":"Speicherliste!B$150","v":0}]
[null,null,"Sonstige Forderungen nach KE TOTAL",null,null,null,null,{"$f":"Speicherliste!B$151","v":0}]
[null,null,"-----------------------------------------------------------------------------------------------------",null,null,null,null,"---------------------------------------------------------------------"]
[null,null,"Gewährung Vorbezüge Datum von:",null,null,null,null,{"$f":"IF(Speicherliste!B$153 = \"\", \"\",Speicherliste!B$153)","v":""}]
[null,null,"Gewährung Vorbezüge Datum bis:",null,null,null,null,{"$f":"IF(Speicherliste!B$154 = \"\", \"\",Speicherliste!B$154)","v":""}]
[null,null,"Vorausbezüge Betrag",null,null,null,null,{"$f":"Speicherliste!B$94","v":0}]
[null,null,"Datum Stellenantritt neue Stelle",null,null,null,null,{"$f":"IF(Speicherliste!B$97 = \"\", \"\",Speicherliste!B$97)","v":""}]
[null,null,"Datum allfällige Befristung neue Stelle",null,null,null,null,{"$f":"IF(Speicherliste!B$99 = \"\", \"\",Speicherliste!B$99)","v":""}]
[null,null,"Neuer Lohn Betrag",null,null,null,null,{"$f":"Speicherliste!B$100","v":0}]
[null,null,"Sonstige Einnahmen Betrag",null,null,null,null,{"$f":"Speicherliste!B$104","v":0}]
[null,null,"-----------------------------------------------------------------------------------------------------",null,null,null,null,"---------------------------------------------------------------------"]

{"sheet":"Speicherliste","index":1,"n_rows":170,"n_cols":15,"rows_kept":170,"cut":false,"hidden":true,"merged":[]}
["Name des Konkursiten",null,"b1",null,"Krz.-Nr.","Notariat","Adresse","Postfach","PLZ / Ort","Telefon","Fax","E-Mail Addresse","User ID","Zust. Notar","Stellvertreter"]
["Strasse AG",null,"b2",null,5001,"Notariat Affoltern","Sagistrasse 8b","Postfach","8910 Affoltern a. A.","01 / 763 44 66","01 / 763 44 77","affoltern@notariate.zh.ch","NOTAFF","Schneebeli","Hiltpold"]
["Hausnummer AG",null,"b3",null,5002,"Notariat Andelfingen","Ob der Gass 15","Postfach","8450 Andelfingen","052 / 305 21 21","052 / 305 21 38","andelfingen@notariate.zh.ch","NOTAND","Zollinger","vak."]
["Postleitzahl AG",null,"b4",null,5003,"Notariat Bassersdorf","Plätzliweg 4","Postfach","8303 Bassersdorf","01 / 838 30 80","01 / 838 30 99","bassersdorf@notariate.zh.ch","NOTBAS","Hensch","vak."]
["Ort AG",null,"b5",null,5004,"Notariat Bauma","Dorfstrasse 42","Postfach","8494 Bauma","052 / 397 10 40","052 / 397 10 49","bauma@notariate.zh.ch","NOTBAU","Mäusli","vak."]
["Datum Konkurseröffnung",null,"b6",null,5005,"Notariat Bülach","Marktgasse 1","Postfach","8180 Bülach","01 / 864 82 20","01 / 864 82 39","buelach@notariate.zh.ch","NOTBUE","Weidmann","Doll"]
["Name AN",null,"b7",null,5006,"Notariat Dielsdorf","Wehntalerstrasse 40","Postfach","8157 Dielsdorf","01 / 855 58 20","01 / 855 58 21","dielsdorf@notariate.zh.ch","NOTDIL","Wittwer","Glanzmann"]
["Vorname AN",null,"b8",null,5007,"Notariat Dietikon","Zentralstrasse 19","Postfach","8953 Dietikon ","043 / 322 43 00","043 / 322 43 10","dietikon@notariate.zh.ch","NOTDIT","Markwalder","Gmür"]
["Strasse AN",null,"b9",null,5008,"Notariat Dübendorf","Bettlistrasse 28",null,"8600 Dübendorf","01 / 801 94 30","01 / 801 94 40","duebendorf@notariate.zh.ch","NOTDUB","Stulz","Knecht"]
["Hausnummer AN",null,"b10",null,5009,"Notariat Eglisau","Obergass 3","Postfach","8193 Eglisau","01 / 868 20 20","01 / 868 20 28","eglisau@notariate.zh.ch","NOTEGL","Gut","vak."]
["Postleitzahl AN",null,"b11",null,5010,"Notariat Elgg","Bahnhofstrasse 32","Postfach","8353 Elgg","052 / 368 66 33","052 / 368 66 39","elgg@notariate.zh.ch","NOTELG","Bernhard","Albrecht"]
["Ort AN",null,"b12",null,5011,"Notariat Embrach","Dorfstrasse 113 B","Postfach","8424 Embrach","043 / 266 50 00","043 / 266 50 01","embrach@notariate.zh.ch","NOTEMB","Peter","Kappeler"]
["Land AN",null,"b13",null,5012,"Notariat Feuerthalen","Trüllergasse 6","Postfach","8245 Feuerthalen","052 / 647 49 50","052 / 647 49 60","feuerthalen@notariate.zh.ch","NOTFEU","Johner","Theiler"]
["Telefon AN",null,"b14",null,5013,"Notariat Grüningen","Kirchgass 8","Postfach","8627 Grüningen","01 / 936 59 36","01 / 936 59 46","grueningen@notariate.zh.ch","NOTGRU","Wüthrich","Bieri"]
["AHV AN",null,"b15",null,5014,"Notariat Horgen","Dorfplatz 1","Postfach","8810 Horgen","01 / 718 30 70","01 / 718 30 71","horgen@notariate.zh.ch","NOTHOR","Bucher","Kempf"]
["Staatsangehörigkeit AN",null,"b16",null,5015,"Notariat Illnau","Länggstrasse 9","Postfach","8308 Illnau","052 / 355 20 50","052 / 355 20 51","illnau@notariate.zh.ch","NOTILL","Rusterholz","Binder"]
["OB Quellensteuerpflichtigkeit AN ja",false,"b17",null,5016,"Notariat Küsnacht","Kohlrainstrasse 10","Postfach","8700 Küsnacht","01 / 914 70 20","01 / 914 70 35","kuesnacht@notariate.zh.ch","NOTKUE","Stoll","Hersche"]
["OB Quellensteuerpflichtigkeit AN nein",false,"b18",null,5017,"Notariat Männedorf","Bahnhofstrasse 20","Postfach","8708 Männedorf","01 / 922 15 25","01 / 922 15 26","maennedorf@notariate.zh.ch","NOTMAN","Niederhauser","Huser"]
["Kontoverb AN",null,"b19",null,5018,"Notariat Meilen","Dorfstrasse 81","Postfach","8706 Meilen","01 / 924 10 40","01 / 924 10 59","meilen@notariate.zh.ch","NOTMEI","Biefer","Wehrli"]
["OB Vertretung nein",false,"b20",null,5019,"Notariat Niederglatt","Kaiserstuhlstrasse 42","Postfach","8172 Niederglatt","01 / 852 39 00","01 / 852 39 01","niederglatt@notariate.zh.ch","NOTNIG","Rohner","Widmer"]
["OB Vertretung ja",false,"b21",null,5020,"Notariat Pfäffikon","Hörnlistrasse 71","Postfach","8330 Pfäffikon","01 / 953 30 80","01 / 950 54 77","pfaeffikon@notariate.zh.ch","NOTPFA","Kobelt","Weber"]
["Name V",null,"b22",null,5021,"Notariat Schlieren","Uitikonerstrasse 9","Postfach","8952 Schlieren","01 / 755 50 10","01 / 755 50 22","schlieren@notariate.zh.ch","NOTSLI","Saner","Füllemann"]
["Strasse V",null,"b23",null,5022,"Notariat Stäfa","Bahnhofstrasse 28","Postfach","8712 Stäfa","01 / 928 14 14","01 / 928 14 15","staefa@notariate.zh.ch","NOTSTA","Ritter","Altherr"]
["Nr V",null,"b24",null,5023,"Konkursamt Stammheim","Hauptstrasse 8","Postfach","8477 Oberstammheim","052 / 745 11 45","052 / 745 17 29","stammheim@notariate.zh.ch","NOTSTH","Derrer","vak."]
["PLZ V",null,"b25",null,5024,"Notariat Thalwil","Gotthardstrasse 20/22","Postfach","8801 Thalwil","01 / 723 12 40","01 / 723 12 44","thalwil@notariate.zh.ch","NOTTHA","Rengel","Flückiger"]
["Ort V",null,"b26",null,5025,"Notariat Turbenthal","Bahnhofstrasse 6","Postfach","8488 Turbenthal","052 / 397 21 11","052 / 397 21 19","turbenthal@notariate.zh.ch","NOTTURB","Hiestand","vak."]
["Land V",null,"b27",null,5026,"Notariat Uster","Zürichstrasse 1","Postfach","8610 Uster","01 / 905 90 20","01 / 905 90 30","uster@notariate.zh.ch","NOTUST","Mathieu","Berli"]
["Telefon V",null,"b28",null,5027,"Notariat Wädenswil","Zugerstrasse 16","Postfach","8820 Wädenswil","01 / 783 86 20","01 / 783 86 21","waedenswil@notariate.zh.ch","NOTWAD","Zollinger","vak."]
["Datum Arbeitsbeginn bzw. der erste Arbeitstag wäre gewesen:",null,"b29",null,5028,"Notariat Wald","Rosenthalstrasse 7a","Postfach","8636 Wald","052 / 246 66 65","052 / 246 67 37","wald@notariate.zh.ch","NOTWALD","Letsch","Honegger"]
["Stellenbezeichnung",null,"b30",null,5029,"Notariat Wallisellen","Zentralstrasse 9","Postfach","8304 Wallisellen","01 / 839 47 50","01 / 839 47 60","wallisellen@notariate.zh.ch","NOTWALL","Bucher","Furrer"]
["OB Organstellung nein",false,"b31",null,5030,"Notariat Wetzikon","Bahnhofstrasse 156","Postfach","8620 Wetzikon","01 / 930 00 35","01 / 930 00 34","wetzikon@notariate.zh.ch","NOTWETZ","Matzinger","Bölli"]
["OB Organstellung ja",false,"b32",null,5031,"Notariat Winterthur-Altstadt","Stadthausstrasse 12","Postfach","8401 Winterthur","052 / 269 26 66","052 / 269 26 50","winterthur-altstadt@notariate.zh.ch","NOTAWIN","Gloor","Aeppli"]
["Organbezeichnung",null,"b33",null,5032,"Notariat Oberwinterthur-Winterthur","Stadthausstrasse 12","Postfach","8401 Winterthur","052 / 269 31 11","052 / 269 31 12","oberwinterthur-winterthur@notariate.zh.ch","NOTOBW","Weber","Schmuki"]
["Letzter Arbeitstag",null,"b34",null,5033,"Notariat Wülflingen-Winterthur","Stadthausstrasse 12","Postfach","8401 Winterthur","052 / 269 06 30","052 / 269 06 59","wuelflingen-winterthur@notariate.zh.ch","NOTWUEL","Masciadri","Schaltegger"]
["CB Kündigung ja",false,"b35",null,5034,"Notariat Zürich (Altstadt)","Löwenstrasse 11","Postfach","8022 Zürich","01 / 215 41 11","01 / 215 41 10","zuerich-altstadt@notariate.zh.ch","NOTAZCH","Tobler","Bölli"]
["Künd datum",null,"b36",null,5035,"Notariat Altstetten-Zürich","Altstetterstrasse 142","Postfach","8048 Zürich","01 / 439 40 50","01 / 439 40 55","altstetten-zuerich@notariate.zh.ch","NOTALTS","Diggelmann","Hofstetter"]
["Künd termin",null,"b37",null,5036,"Notariat Aussersihl-Zürich","Wengistrasse 7","Postfach","8036 Zürich","01 / 296 89 00","01 / 296 89 10","aussersihl-zuerich@notariate.zh.ch","NOTAUSZ","Bigler","Keller"]
["Art Künd",null,"b38",null,5037,"Notariat Enge-Zürich","Bederstrasse 28","Postfach","8027 Zürich","01 / 287 97 97","01 / 287 97 87","enge-zuerich@notariate.zh.ch","NOTENGZ","Meier","Bachmann"]
["Lohnanspruch geltend gemacht länger bis zum",null,"b39",null,5038,"Notariat Fluntern-Zürich","Freiestrasse 15","Postfach","8032 Zürich","01 / 265 39 39","01 / 265 39 29","fluntern-zuerich@notariate.zh.ch","NOTFLU","Morger","Neuenschwander"]
["CB Kündigung nein",false,"b40",null,5039,"Notariat Höngg-Zürich","Frankentalerstrasse 3",null,"8049 Zürich","01 / 344 45 10","01 / 344 45 29","hoengg-zuerich@notariate.zh.ch","NOTHOEZ","Kunz","Houdek"]
["OB Bei Konkeröffnung wäre nächster Künd termin",false,"b41",null,5040,"Notariat Hottingen-Zürich","Witikonerstrasse 15","Postfach","8032 Zürich","01 / 385 99 30","01 / 385 99 44","hottingen-zuerich@notariate.zh.ch","NOTHOTZ","Sulzer","Sandmayr"]
["Datum nächstmögl. Termin",null,"b42",null,5041,"Notariat Oerlikon-Zürich","Nansenstrasse 16","Postfach","8050 Zürich","01 / 315 57 60","01 / 315 57 89","oerlikon-zuerich@notariate.zh.ch","NOTOER","Schweizer","Egolf"]
["OB Das Arbeiotsverhältn. War befristet Ende der Vertragsdauer",false,"b43",null,5042,"Notariat Riesbach-Zürich","Kreuzstrasse 42","Postfach","8034 Zürich ","01 / 258 40 10","01 / 258 40 30","riesbach-zuerich@notariate.zh.ch","NOTRIBZ","Rieser","Allemann"]
["Datum Ende Vertragsdauer",null,"b44",null,5043,"Notariat Unterstrass-Zürich","Schaffhauserstrasse 2","Postfach","8042 Zürich","01 / 360 30 70","01 / 360 30 96","unterstrass-zuerich@notariate.zh.ch","NOTUNSZ","Hugentobler","Kuhn"]
["CB Beendigung in gegenseitigem Einverständnis",false,"b45",null,5044,"Notariat Wiedikon-Zürich","Weststrasse 70","Postfach","8036 Zürich","01 / 466 70 40","01 / 466 70 51","wiedikon-zuerich@notariate.zh.ch","NOTWIED","Voser","Schlatter"]
["Vertragl. Lohn Betrag",null,"b46",null,null,"Mobile Equipe Konkurs","Wengistrasse 7","Postfach","8036 Zürich"]
["Ferienaspruch vertragl  anzahl",null,"b47",null,null,"Schulungszentrum",null,null,"8603 Schwerzenbach","01 / 806 10 60 ... 63"]
["Ferienanspruch vertragl. Einheit",null,"b48"]
["OB Anspruch auf 13. nein",false,"b49"]
["OB Anspruch auf 13. ja",false,"b50"]
["Vorgegebene wöchentl. Arbeitszeit Anzahl",null,"b51"]
["OB Anspruch auf Grati nein",false,"b52"]
["OB Anspruch auf Grati ja",false,"b53"]
["Datum ab wann Grati",null,"b54"]
["Datum bis wann Grati",null,"b55"]
["Datum Beendigung in gegenseitigem Einverständnis",null,"b56"]
["Betrag Grati",null,"b57"]
["Lohn vollständig bis Monatname",null,"b58"]
["Lohn vollständig bis Jahr",null,"b59"]
["OB Teillöhne erhalten nein",false,"b60"]
["OB Teillöhne erhalten ja",false,"b61"]
["Teillohn 1 Monatname",null,"b62"]
[" ---------- Leerfeld-------------------",null,"b63"]
["Teillohn 1 Betrag",null,"b64"]
["Teillohn 2 Monatname",null,"b65"]
["Angaben c/o",null,"b66"]
["Teillohn 2 Betrag",null,"b67"]
["Teillohn 3 Monatname",null,"b68"]
[" ---------- Leerfeld-------------------",null,"b69"]
["Teillohn 3 Betrag",null,"b70"]
[" ---------- Leerfeld-------------------",null,"b71"]
[" ---------- Leerfeld-------------------",null,"b72"]
[" ---------- Leerfeld-------------------",null,"b73"]
["monatl. Grundgehalt nach altem Lohn bis und mit Datum:",null,"b74","          neuer Lohn also ab Datum: ",null,{"$f":"B74+1","v":"1900-01-01"}]
["monatl. Grundgehalt geändert im Betrag:",null,"b75"]
[" ---------- Leerfeld-------------------",null,"b76"]
["Grunddaten2 Postfach des Gläubigers vorhanden?",false,"b77"]
["PostfachNummer des Gläubigers",null,"b78"]
[" ---------- Leerfeld-------------------",null,"b79"]
["Gvertretung Postfach des Vertreters vorhanden?",false,"b80"]
["PostfachNummer des Vertreters",null,"b81"]
[" ---------- Leerfeld-------------------",null,"b82"]
[" ---------- Leerfeld-------------------",null,"b83"]
[" ---------- Leerfeld-------------------",null,"b84"]
[" ---------- Leerfeld-------------------",null,"b85"]
[" ---------- Leerfeld-------------------",null,"b86"]
[" ---------- Leerfeld-------------------",null,"b87"]
[" ---------- Leerfeld-------------------",null,"b88"]
[" ---------- Leerfeld-------------------",null,"b89"]
[" ---------- Leerfeld-------------------",null,"b90"]
["OB Gewährung Vorausbezüge nein",false,"b91"]
["OB Gewährung Vorausbezüge ja",false,"b92"]
[" ---------- Leerfeld-------------------",null,"b93"]
["Vorausbezüge Betrag",null,"b94"]
["CB keine neue Stelle",false,"b95"]
["CB neue Stelle gefunden",false,"b96"]
["Datum Stellenantritt neue Stelle",null,"b97"]
["Name neuer AG",null,"b98"]
["Datum allfällige Befristung neue Stelle",null,"b99"]
["Neuer Lohn Betrag",null,"b100"]
["OB sonstige Einnahmen während KündFrist nein",false,"b101"]
["OB sonstige Einnahmen während KündFrist ja",false,"b102"]
[" ---------- Leerfeld-------------------",null,"b103"]
["Sonstige Einnahmen Betrag",null,"b104"]
["Auswahl zuständ. Konkursamt",null,"b105"]
["OB Lohnansprüche für längeren Zeitraum nein",false,"b106"]
["OB Lohnansprüche für längeren Zeitraum ja",false,"b107"]
["Grund sonstiger Forderungen",null,"b108"]
[" ---------- Leerfeld-------------------",null,"b109"]
["Ich habe nie eine Lohnzahlung erhalten",false,"b110"]
["Ferienguthaben per Datum",null,"b111"]
["Ferienguthaben per Anzahl Tage",null,"b112"]
["Ferienguthaben ab Datum",null,"b113"]
["Ferienguthaben bis Datum",null,"b114"]
["Ferienguthaben ab bis Anzahl Tage",null,"b115"]
["Bemerkungen zu Ferienguthaben",null,"b116"]
["Anzahl Tage Ferienguthaben insgesamt",null,"b117",null,": Ferienguthaben insgesamt in Franken"]
["Sonstige Forderungen vor KE 1 Grund",null,"b118"]
["Sonstige Forderungen vor KE 1 von",null,"b119"]
["Sonstige Forderungen vor KE 1 bis",null,"b120"]
["Sonstige Forderungen vor KE 1 Betrag",null,"b121"]
["Sonstige Forderungen vor KE 2 Grund",null,"b122"]
["Sonstige Forderungen vor KE 2 von",null,"b123"]
["Sonstige Forderungen vor KE 2 bis",null,"b124"]
["Sonstige Forderungen vor KE 2 Betrag",null,"b125"]
["Sonstige Forderungen vor KE 3 Grund",null,"b126"]
["Sonstige Forderungen vor KE 3 von",null,"b127"]
["Sonstige Forderungen vor KE 3 bis",null,"b128"]
["Sonstige Forderungen vor KE 3 Betrag",null,"b129"]
["Sonstige Forderungen vor KE 4 Grund",null,"b130"]
["Sonstige Forderungen vor KE 4 von",null,"b131"]
["Sonstige Forderungen vor KE 4 bis",null,"b132"]
["Sonstige Forderungen vor KE 4 Betrag",null,"b133"]
["Sonstige Forderungen vor KE TOTAL",null,"b134"]
["Sonstige Forderungen nach KE 1 Grund",null,"b135"]
["Sonstige Forderungen nach KE 1 von",null,"b136"]
["Sonstige Forderungen nach KE 1 bis",null,"b137"]
["Sonstige Forderungen nach KE 1 Betrag",null,"b138"]
["Sonstige Forderungen nach KE 2 Grund",null,"b139"]
["Sonstige Forderungen nach KE 2 von",null,"b140"]
["Sonstige Forderungen nach KE 2 bis",null,"b141"]
["Sonstige Forderungen nach KE 2 Betrag",null,"b142"]
["Sonstige Forderungen nach KE 3 Grund",null,"b143"]
["Sonstige Forderungen nach KE 3 von",null,"b144"]
["Sonstige Forderungen nach KE 3 bis",null,"b145"]
["Sonstige Forderungen nach KE 3 Betrag",null,"b146"]
["Sonstige Forderungen nach KE 4 Grund",null,"b147"]
["Sonstige Forderungen nach KE 4 von",null,"b148",null,null,null,{"$f":"IF(AND(G149= \"\", G150 = \"\"),IF(ISNUMBER(E157)=TRUE,DAYS360((B164-1),E158)-E157,DAYS360(B164-1,E158)), \"\")","v":{"$error":"#VALUE!"}}]
["Sonstige Forderungen nach KE 4 bis",null,"b149",null,null,null,{"$f":"IF(AND(MONTH(E158)<>MONTH(E158+1),DAY(E158) = 29), IF(ISNUMBER(E157)=TRUE,DAYS360((B164-1),E158)+1-E157,DAYS360(B164-1,E158)+1), \"\")","v":{"$error":"#VALUE!"}}]
["Sonstige Forderungen nach KE 4 Betrag",null,"b150",null,null,null,{"$f":"IF(AND(MONTH(E158)<>MONTH(E158+1),DAY(E158) = 28), IF(ISNUMBER(E157)=TRUE,DAYS360((B164-1),E158)+2-E157,DAYS360(B164-1,E158)+2), \"\")","v":{"$error":"#VALUE!"}}]
["Sonstige Forderungen nach KE TOTAL",null,"b151",null,null,null,{"$f":"IF(AND(G152= \"\", G153 = \"\"),IF(ISNUMBER(E161)=TRUE,DAYS360((D160-1),E158)-E161,DAYS360(D160-1,E158)), \"\")","v":{"$error":"#VALUE!"}}]
[" ---------- Leerfeld-------------------",null,"b152",null,null,null,{"$f":"IF(AND(MONTH(E158)<>MONTH(E158+1),DAY(E158) = 29), IF(ISNUMBER(E161)=TRUE,DAYS360((D160-1),E158)+1-E161,DAYS360(D160-1,E158)+1),\"\")","v":{"$error":"#VALUE!"}}]
["Gewährung Vorbezüge Datum von:",null,"b153",null,null,null,{"$f":"IF(AND(MONTH(E158)<>MONTH(E158+1),DAY(E158) = 28), IF(ISNUMBER(E161)=TRUE,DAYS360((D160-1),E158)+2-E161,DAYS360(D160-1,E158)+2), \"\")","v":{"$error":"#VALUE!"}}]
["Gewährung Vorbezüge Datum bis:",null,"b154"]
[]
["Speicher Datum voller Lohn zuletzt erhalten für:",null,"b156","durch makro gesetzt"]
["Prüfen, ob und inwieweit (Anzahl Tage) ein Lohnbetragswechsel spielt","------------------","b157","---------------------------",{"$f":"IF(AND(B74  <> \"\", B74 <E158, B74 >B164), DAYS360(B164-1,B74),0)","v":{"$error":"#VALUE!"}},"Anzahl Tage vor LW",{"$f":"SUM(G148:G150)","v":{"$error":"#VALUE!"}},"Tage nach Lohnbetragswechsel o. kein W",{"$f":"G157","v":{"$error":"#VALUE!"}},"Lohnbetrag nach LW",{"$f":"IF(ISNUMBER(I157) = FALSE, 0,IF(B164 = \"\", 0,IF(I157 <> 0, ((B46*I157)/30), 0)))","v":0}]
["Speicher relevanter Tag bis wann max Lohnforderung grunds.",{"$f":"IF(AND(B35=TRUE,B37<>\"\",B39=\"\",B164<=B37,B164<>\"\"),B37,IF(AND(B35=TRUE,B39<>\"\",B164<=B39,B164<>\"\"),B39,IF(AND(B45=TRUE,B56<>\"\",B164<=B56,B164<>\"\"),B56,\"\")))","v":""},"b158",{"$f":"IF(AND(B40=TRUE,B41=TRUE,B42<>\"\",B164<=B42,B164<>\"\"),B42,IF(AND(B40=TRUE,B43=TRUE,B44<>\"\",B164<=B44,B164<>\"\",B44<=B6),B44,\"\"))","v":""},{"$f":"IF(B158 <> \"\",B158,IF(D158 <> \"\",D158,B164 - 1))","v":{"$error":"#VALUE!"}},"Zusammenzug",{"$f":"E157","v":{"$error":"#VALUE!"}},"Tage vor Lohnbetragswechsel",{"$f":"G158","v":{"$error":"#VALUE!"}},"Lohnbetrag vor LW",{"$f":"IF(ISNUMBER(I158) = FALSE, 0,IF(B164 = \"\", 0,IF(AND(I158 <> 0, B75 > 0), ((B75*I158)/30), 0)))","v":0}]
["Offener Grundbetrag bis zur Konkurseröffnung","------------------","b159","---------------------------",{"$f":"K157+K158","v":0},null,null,null,null,"Zusammen",{"$f":"K157+K158","v":0}]
["Ab wann 13. Monatslohn?:                                 wird per Makro gesetzt ->",null,"b160",{"$f":"IF(AND(B110=TRUE,B29<>\"\"),B29,IF(AND(B29<>\"\",B29>B160,),B29,B160))","v":"00:00:00"},"relevantes anfangsdatum für g161 und g162"]
["Prüfen, ob und inwieweit (Anzahl Tage) ein Lohnbetragswechsel spielt","------------------","b161","---------------------------",{"$f":"IF(AND(B74  <> \"\", B74 <E158, B74>D160), DAYS360(D160-1,B74),0)","v":{"$error":"#VALUE!"}},null,{"$f":"SUM(G151:G153)","v":{"$error":"#VALUE!"}},"Tage nach Lohnbetragswechsel o. kein W",{"$f":"G161","v":{"$error":"#VALUE!"}},"Lohnbetrag nach LW",{"$f":"IF(ISNUMBER(I161) = FALSE, 0,IF(OR(D160 = \"\", B164 = \"\"), 0,IF(B50 = TRUE, B46 / 360 * I161,0)))","v":0}]
[null,null,null,null,null,null,{"$f":"E161","v":{"$error":"#VALUE!"}},"Tage vor Lohnbetragswechsel",{"$f":"G162","v":{"$error":"#VALUE!"}},"Lohnbetrag vor LW",{"$f":"IF(ISNUMBER(I162) = FALSE, 0,IF(B164 = \"\", 0,IF(AND(B50 = TRUE, B75 > 0),B75 * I162 / 360,0)))","v":0}]
[null,null,null,null,null,null,null,null,null,"Zusammen",{"$f":"K161+K162","v":0}]
["ergänzt b156 mit 'ich habe nie eine Lohnzahlung erhalten! :",{"$f":"IF(AND(B110 = TRUE, B29 <> \"\"),B29,IF(B156 <> \"\",B156 + 1,\"\"))","v":""},"b164"]
[null,null,"b165"]
["(für vor und nach KE!)",null,"b166",null,null,null,{"$f":"\"= von diesen Stammdaten aus wird berechnet\"","v":"= von diesen Stammdaten aus wird berechnet"}]
[null,null,null,{"$f":"IF(AND(B37<>\"\",B39=\"\"),B37,IF(B39<>\"\",B39,IF(B56 <> \"\", B56,IF(B42 <> \"\", B42,IF(B44 <> \"\", B44,\"\")))))","v":""}]
[null,null,null,{"$f":"IF(AND(B99 <> \"\",B99 < D167), B99, D167)","v":""}]
["(Anzahl Tage zwischen d196 und Antritt neue Stelle (inkl. Tage360())",{"$f":"IF(B97 <> \"\",IF(AND(MONTH(D168)<>MONTH(D168+1),DAY(D168) = 29), DAYS360(B97-1, D168)+1, IF(AND(MONTH(D168)<>MONTH(D168+1),DAY(D168) = 28),DAYS360(B97-1, D168)+2, DAYS360(B97-1, D168))),0)","v":0},"b171"]
["(Entsprechender anrechenbarer Betrag mit b100:)",{"$f":"IF(B169 > 0,B169*(B100/30),0)","v":0},"b172"]